Workbook

Sheet Rozpocet 2021
A1: 00298468 Město Štramberk
A2: Náměstí 9 Štramberk
A3: PLNĚNÍ ROZPOČTU K 31.10.2020 V KČ - Rozpočet 2021
A4: Podmínka: AND ORJ je mezi 11, 67
A5: ORJ | B5: ORG | C5: ODPA | D5: POL | E5: Popis | F5: Příjmy - UR | G5: Příjmy - Čerpání | H5: Rozpočet 2021 | I5: Č/UR% | J5: Výdaje - UR | K5: Výdaje - Čerpání | L5: Rozpočet 2021 | M5: Č/UR%
A6: 11 | D6: 1111 | E6: Daň z příjmů fyzických osob placená plátci | F6: 11400000 | G6: 9098597.46 | H6: 10900000 | I6: 79.81 | J6: 0 | K6: 0 | M6: 0
A7: 11 | D7: 1112 | E7: Daň z příjmů fyzických osob placená poplatníky | F7: 100000 | G7: 89391.67 | H7: 160000 | I7: 89.39 | J7: 0 | K7: 0 | M7: 0
A8: 11 | D8: 1113 | E8: Daň z příjmů fyzických osob vybíraná srážkou | F8: 940000 | G8: 931412.48 | H8: 1100000 | I8: 99.09 | J8: 0 | K8: 0 | M8: 0
A9: 11 | D9: 1121 | E9: Daň z příjmů právnických osob | F9: 6500000 | G9: 6586983.09 | H9: 7100000 | I9: 101.34 | J9: 0 | K9: 0 | M9: 0
A10: 11 | D10: 1122 | E10: Daň z příjmů právnických osob za obce | F10: 1209730 | G10: 1209730 | I10: 100 | J10: 0 | K10: 0 | M10: 0
A11: 11 | D11: 1211 | E11: Daň z přidané hodnoty | F11: 20900000 | G11: 18327212.86 | H11: 24400000 | I11: 87.69 | J11: 0 | K11: 0 | M11: 0
A12: 11 | D12: 1334 | E12: Odvody za odnětí půdy ze zemědělského půdního fondu | F12: 3000 | G12: 0 | H12: 2000 | I12: 0 | J12: 0 | K12: 0 | M12: 0
A13: 11 | D13: 1335 | E13: Poplatky za odnětí pozemků plnění funkcí lesa | F13: 1000 | G13: 0 | H13: 1000 | I13: 0 | J13: 0 | K13: 0 | M13: 0
A14: 11 | D14: 1340 | E14: Poplatek za likvidaci komunálního odpadu | F14: 1615000 | G14: 1506418.59 | H14: 1836000 | I14: 93.28 | J14: 0 | K14: 0 | M14: 0
A15: 11 | D15: 1341 | E15: Poplatek ze psů | F15: 105000 | G15: 66970 | H15: 95000 | I15: 63.78 | J15: 0 | K15: 0 | M15: 0
A16: 11 | D16: 1342 | E16: Poplatek z pobytu | F16: 191000 | G16: 89990 | H16: 180000 | I16: 47.12 | J16: 0 | K16: 0 | M16: 0
A17: 11 | D17: 1343 | E17: Poplatek za užívání veřejného prostranství | F17: 212000 | G17: 248086 | H17: 212000 | I17: 117.02 | J17: 0 | K17: 0 | M17: 0
A18: 11 | D18: 1349 | E18: Zrušené místní poplatky | F18: 30000 | G18: 30159 | I18: 100.53 | J18: 0 | K18: 0 | M18: 0
A19: 11 | D19: 1381 | E19: Daň z hazardních her s výjimkou dílčí daně z technických her | F19: 250000 | G19: 234484.19 | H19: 250000 | I19: 93.79 | J19: 0 | K19: 0 | M19: 0
A20: 11 | D20: 1511 | E20: Daň z nemovitých věcí | F20: 3700000 | G20: 2729731.29 | H20: 3800000 | I20: 73.72672378 | J20: 0 | K20: 0 | M20: 0
A21: ORG | F21: 47156730 | G21: 37677581.29 | H21: =SUM(H6:H20) -> 50036000 | I21: 87.26 | J21: 0 | K21: 0 | M21: 0
A22: 11 | B22: 000001 | D22: 1361 | E22: Správní poplatky | F22: 40000 | G22: 35000 | H22: 40000 | I22: 87.5 | J22: 0 | K22: 0 | M22: 0
A23: ORG 000001 Sňatky | F23: 40000 | G23: =SUM(G22) -> 35000 | H23: =SUM(H22) -> 40000 | I23: 87.5 | J23: 0 | K23: 0 | M23: 0
A24: 11 | B24: 000002 | D24: 1361 | E24: Správní poplatky | F24: 3150 | G24: 3750 | H24: 3000 | I24: 119.05 | J24: 0 | K24: 0 | M24: 0
A25: ORG 000002 Trvalý pobyt | F25: 3150 | G25: =SUM(G24) -> 3750 | H25: =SUM(H24) -> 3000 | I25: 119.05 | J25: 0 | K25: 0 | M25: 0
A26: 11 | B26: 000003 | D26: 1361 | E26: Správní poplatky | F26: 10000 | G26: 9360 | H26: 10000 | I26: 93.6 | J26: 0 | K26: 0 | M26: 0
A27: ORG 000003 Ověřování listin a podpisů | F27: 10000 | G27: =SUM(G26) -> 9360 | H27: =SUM(H26) -> 10000 | I27: 93.6 | J27: 0 | K27: 0 | M27: 0
A28: 11 | B28: 000004 | D28: 1361 | E28: Správní poplatky | F28: 7000 | G28: 4210 | H28: 6000 | I28: 60.14 | J28: 0 | K28: 0 | M28: 0
A29: ORG 000004 CzechPOINT | F29: 7000 | G29: =SUM(G28) -> 4210 | H29: =SUM(H28) -> 6000 | I29: 60.1 | J29: 0 | K29: 0 | M29: 0
A30: 11 | B30: 000006 | D30: 1361 | E30: Správní poplatky | F30: 200000 | G30: 159800 | H30: 200000 | I30: 79.9 | J30: 0 | K30: 0 | M30: 0
A31: ORG 000006 Stav.povolení,kolaud.rozh. | F31: 200000 | G31: =SUM(G30) -> 159800 | H31: =SUM(H30) -> 200000 | I31: 79.9 | J31: 0 | K31: 0 | M31: 0
A32: 11 | B32: 000008 | D32: 1361 | E32: Správní poplatky | F32: 2000 | G32: 1000 | H32: 2000 | I32: 50 | J32: 0 | K32: 0 | M32: 0
A33: ORG 000008 Změna jména a příjmení | F33: 2000 | G33: 1000 | H33: =SUM(H32) -> 2000 | I33: 50 | J33: 0 | K33: 0 | M33: 0
A34: 11 | B34: 000009 | D34: 1361 | E34: Správní poplatky | F34: 1000 | G34: 1000 | H34: 1000 | I34: 100 | J34: 0 | K34: 0 | M34: 0
A35: ORG 000009 Druhopisy matričních dokladů | F35: 1000 | G35: =SUM(G34) -> 1000 | H35: =SUM(H34) -> 1000 | I35: 100 | J35: 0 | K35: 0 | M35: 0
A36: 11 | B36: 000010 | D36: 1361 | E36: Správní poplatky | F36: 1000 | G36: 400 | H36: 1000 | I36: 40 | J36: 0 | K36: 0 | M36: 0
A37: ORG 000010 Rušení údaje TP | F37: 1000 | G37: =SUM(G36) -> 400 | H37: =SUM(H36) -> 1000 | I37: 40 | J37: 0 | K37: 0 | M37: 0
A38: 11 | B38: 000011 | D38: 1361 | E38: Správní poplatky | F38: 1000 | G38: 0 | H38: 1000 | I38: 0 | J38: 0 | K38: 0 | M38: 0
A39: ORG 000011 Kolky - prodej pozemků | F39: 1000 | G39: 0 | H39: =SUM(H38) -> 1000 | I39: 0 | J39: 0 | K39: 0 | M39: 0
A40: 11 | B40: 000012 | D40: 1361 | E40: Správní poplatky | F40: 150 | G40: 150 | H40: 500 | I40: 100 | J40: 0 | K40: 0 | M40: 0
A41: ORG 000012 Potvrzení z IS | F41: 150 | G41: 150 | H41: =SUM(H40) -> 500 | I41: 100 | J41: 0 | K41: 0 | M41: 0
A42: 11 | B42: 000013 | D42: 1361 | E42: Správní poplatky | F42: 500 | G42: 0 | H42: 500 | I42: 0 | J42: 0 | K42: 0 | M42: 0
A43: ORG 000013 Vysvědčení o PZ | F43: 500 | G43: 0 | H43: =SUM(H42) -> 500 | I43: 0 | J43: 0 | K43: 0 | M43: 0
A44: 11 | B44: 000014 | D44: 1361 | E44: Správní poplatky | F44: 100 | G44: 100 | H44: 100 | I44: 100 | J44: 0 | K44: 0 | M44: 0
A45: ORG 000014 Nahlížení matrik | F45: 100 | G45: 100 | H45: =SUM(H44) -> 100 | I45: 100 | J45: 0 | K45: 0 | M45: 0
A46: ORJ 11 Daně | F46: 47422630 | G46: 41363936.63 | H46: =SUM(H21,H23,H25,H27,H29,H31,H33,H35,H37,H39,H41,H43,H45) -> 50301100 | I46: 87.22 | J46: 0 | K46: 0 | M46: 0 | N46: komentář
A47: 12 | D47: 4111 | E47: Neinvestiční přijaté transfery z všeobecné pokladní správy SR | F47: 4330000 | G47: 4330000 | I47: 100 | J47: 0 | K47: 0 | M47: 0
A48: 12 | D48: 4112 | E48: Neinvestiční přijaté transfery ze SR v rámci souhrnného dotačního vztahu | F48: 2150100 | G48: 1791750 | H48: 2205700 | I48: 83.33 | J48: 0 | K48: 0 | M48: 0
A49: ORJ 12 Dotace obcím | F49: 6480100 | G49: 6121750 | H49: =SUM(H47:H48) -> 2205700 | I49: 94.47 | J49: 0 | K49: 0 | M49: 0
A50: 20 | B50: 002000 | C50: 2119 | D50: 2324 | E50: Přijaté nekapitálové příspěvky a náhrady | F50: 300000 | G50: 260000 | H50: 300000 | I50: 86.66666667 | J50: 0 | K50: 0 | M50: 0
A51: 20 | B51: 002000 | C51: 2119 | D51: 2343 | E51: Příjmy z dobíhajících úhrad dobývacího prostoru a z vydobytých nerostů | F51: 4300000 | G51: 3899946.39 | H51: 4500000 | I51: 90.69642767 | J51: 0 | K51: 0 | M51: 0
A52: 20 | B52: 002000 | C52: 2119 | D52: 5171 | E52: Opravy a udržování | F52: 0 | G52: 0 | I52: 0 | J52: 520000 | K52: 0 | M52: 0
A53: 20 | B53: 002000 | C53: 2119 | D53: 5494 | E53: Neinvestiční transfery obyvatelstvu nemající charakter daru | F53: 0 | G53: 0 | I53: 0 | J53: 620000 | K53: 0 | L53: 762550 | M53: 0
A54: 20 | B54: 002000 | C54: 2119 | D54: 6122 | E54: Stroje, přístroje a zařízení | F54: 0 | G54: 0 | I54: 0 | J54: 100000 | K54: 0 | L54: 100000 | M54: 0
A55: ORG 002000 Úhrady za dobývací činnost | F55: 4600000 | G55: 4159946.39 | H55: =SUM(H50:H51) -> 4800000 | I55: 90.43 | J55: 1240000 | K55: 0 | L55: =SUM(L52:L54) -> 862550 | M55: 0 | N55: komentář
A56: 20 | B56: 002010 | C56: 3419 | D56: 5222 | E56: Neinvestiční transfery spolkům | F56: 0 | G56: 0 | I56: 0 | J56: 210000 | K56: 176000 | L56: 210000 | M56: 83.80952381
A57: ORG 002010 Příspěvky sportovním klubům | F57: 0 | G57: 0 | I57: 0 | J57: 210000 | K57: 176000 | L57: =SUM(L56) -> 210000 | M57: 83.81
A58: 20 | B58: 002020 | C58: 3429 | D58: 5222 | E58: Neinvestiční transfery spolkům | F58: 0 | G58: 0 | I58: 0 | J58: 210000 | K58: 151300 | L58: 210000 | M58: 72.04761905
A59: ORG 002020 Příspěvky spolkům - zájmová činnost | F59: 0 | G59: 0 | I59: 0 | J59: 210000 | K59: 151300 | L59: =SUM(L58) -> 210000 | M59: 72.05
A60: 20 | B60: 002021 | C60: 2143 | D60: 2321 | E60: Přijaté neinvestiční dary | F60: 0 | G60: 10000 | I60: 0 | J60: 0 | K60: 0 | M60: 0
A61: 20 | B61: 002021 | C61: 2143 | D61: 5169 | E61: Nákup ostatních služeb | F61: 0 | G61: 0 | I61: 0 | J61: 0 | K61: 0 | L61: 40000 | M61: 0
A62: 20 | B62: 002021 | C62: 2143 | D62: 5222 | E62: Neinvestiční transfery spolkům | F62: 0 | G62: 0 | I62: 0 | J62: 15000 | K62: 0 | L62: 25000 | M62: 0
A63: ORG 002021 Podpora marketingu akcí ve městě | F63: 0 | G63: 10000 | H63: =SUM(H60) -> 0 | I63: 0 | J63: 15000 | K63: 0 | L63: =SUM(L61:L62) -> 65000 | M63: 0
A64: 20 | B64: 002030 | C64: 3421 | D64: 5222 | E64: Neinvestiční transfery spolkům | F64: 0 | G64: 0 | I64: 0 | J64: 150000 | K64: 150000 | L64: 150000 | M64: 100
A65: ORG 002030 DDM-příspěvek | F65: 0 | G65: 0 | I65: 0 | J65: 150000 | K65: 150000 | L65: =SUM(L64) -> 150000 | M65: 100
A66: 20 | B66: 002040 | C66: 5311 | D66: 5321 | E66: Neinvestiční transfery obcím | F66: 0 | G66: 0 | I66: 0 | J66: 1960000 | K66: 1960000 | L66: 1960000 | M66: 100
A67: ORG 002040 Městská policie | F67: 0 | G67: 0 | I67: 0 | J67: 1960000 | K67: 1960000 | L67: =SUM(L66) -> 1960000 | M67: 100
A68: 20 | B68: 002050 | D68: 4116 | E68: Ostatní neinvestiční přijaté transfery ze státního rozpočtu | F68: 150000 | G68: 150000 | H68: 150000 | I68: 100 | J68: 0 | K68: 0 | M68: 0
A69: 20 | B69: 002050 | D69: 4122 | E69: Neinvestiční přijaté transfery od krajů | F69: 50000 | G69: 0 | H69: 50000 | I69: 0 | J69: 0 | K69: 0 | M69: 0
A70: 20 | B70: 002050 | C70: 5512 | D70: 5019 | E70: Ostatní platy | F70: 0 | G70: 0 | I70: 0 | J70: 3000 | K70: 1682 | L70: 3000 | M70: 56.06666667
A71: 20 | B71: 002050 | C71: 5512 | D71: 5021 | E71: Ostatní osobní výdaje | F71: 0 | G71: 0 | I71: 0 | J71: 497000 | K71: 405964 | L71: 490000 | M71: 81.68
A72: 20 | B72: 002050 | C72: 5512 | D72: 5039 | E72: Ostatní povinné pojistné placené zaměstnavatelem | F72: 0 | G72: 0 | I72: 0 | J72: 0 | K72: 151 | L72: 1000 | M72: 0
A73: 20 | B73: 002050 | C73: 5512 | D73: 5134 | E73: Prádlo, oděv a obuv | F73: 0 | G73: 0 | I73: 0 | J73: 54000 | K73: 0 | L73: 40000 | M73: 0
A74: 20 | B74: 002050 | C74: 5512 | D74: 5136 | E74: Knihy, učební pomůcky a tisk | F74: 0 | G74: 0 | I74: 0 | J74: 1000 | K74: 300 | L74: 1000 | M74: 30
A75: 20 | B75: 002050 | C75: 5512 | D75: 5137 | E75: Drobný hmotný dlouhodobý majetek | F75: 0 | G75: 0 | I75: 0 | J75: 60000 | K75: 0 | L75: 50000 | M75: 0
A76: 20 | B76: 002050 | C76: 5512 | D76: 5139 | E76: Nákup materiálu j.n. | F76: 0 | G76: 0 | I76: 0 | J76: 12000 | K76: 2607 | L76: 12000 | M76: 21.725
A77: 20 | B77: 002050 | C77: 5512 | D77: 5151 | E77: Studená voda | F77: 0 | G77: 0 | I77: 0 | J77: 4000 | K77: 779.1 | L77: 3000 | M77: 19.48
A78: 20 | B78: 002050 | C78: 5512 | D78: 5153 | E78: Plyn | F78: 0 | G78: 0 | I78: 0 | J78: 33000 | K78: 14219.26 | L78: 30000 | M78: 43.08866667
A79: 20 | B79: 002050 | C79: 5512 | D79: 5154 | E79: Elektrická energie | F79: 0 | G79: 0 | I79: 0 | J79: 15000 | K79: 9228.26 | L79: 15000 | M79: 61.52
A80: 20 | B80: 002050 | C80: 5512 | D80: 5156 | E80: Pohonné hmoty a maziva | F80: 0 | G80: 0 | I80: 0 | J80: 28000 | K80: 14392.53 | L80: 26000 | M80: 51.4
A81: 20 | B81: 002050 | C81: 5512 | D81: 5161 | E81: Poštovní služby | F81: 0 | G81: 0 | I81: 0 | J81: 200 | K81: 0 | L81: 200 | M81: 0
A82: 20 | B82: 002050 | C82: 5512 | D82: 5162 | E82: Služby elektronických komunikací | F82: 0 | G82: 0 | I82: 0 | J82: 2000 | K82: 2312.16 | L82: 3000 | M82: 115.61
A83: 20 | B83: 002050 | C83: 5512 | D83: 5164 | E83: Nájemné | F83: 0 | G83: 0 | I83: 0 | J83: 1000 | K83: 968 | L83: 1000 | M83: 96.8
A84: 20 | B84: 002050 | C84: 5512 | D84: 5167 | E84: Služby školení a vzdělávání | F84: 0 | G84: 0 | I84: 0 | J84: 24000 | K84: 9688 | L84: 24000 | M84: 40.36666667
A85: 20 | B85: 002050 | C85: 5512 | D85: 5169 | E85: Nákup ostatních služeb | F85: 0 | G85: 0 | I85: 0 | J85: 6000 | K85: 5695 | L85: 6000 | M85: 94.92
A86: 20 | B86: 002050 | C86: 5512 | D86: 5171 | E86: Opravy a udržování | F86: 0 | G86: 0 | I86: 0 | J86: 99000 | K86: 44666.46 | L86: 60000 | M86: 45.12
A87: ORG 002050 JPO II | F87: 200000 | G87: 150000 | H87: =SUM(H68:H69) -> 200000 | I87: 75 | J87: 839200 | K87: 512652.77 | L87: =SUM(L70:L86) -> 765200 | M87: 61.09
A88: ORJ 20 Starosta | F88: 4800000 | G88: 4314946.39 | H88: =SUM(H55,H63,H87) -> 5000000 | I88: 89.89 | J88: 4624200 | K88: 2949952.77 | L88: =SUM(L55,L57,L59,L63,L65,L67,L87) -> 4222750 | M88: 63.79
A89: 21 | B89: 002110 | C89: 5212 | D89: 5139 | E89: Nákup materiálu j.n. | F89: 0 | G89: 0 | I89: 0 | J89: 1000 | K89: 0 | L89: 1000 | M89: 0
A90: 21 | B90: 002110 | C90: 5212 | D90: 5171 | E90: Opravy a udržování | F90: 0 | G90: 0 | I90: 0 | J90: 5000 | K90: 3050 | L90: 5000 | M90: 61
A91: ORG 002110 Civilní obrana | F91: 0 | G91: 0 | I91: 0 | J91: 6000 | K91: 3050 | L91: =SUM(L89:L90) -> 6000 | M91: 50.83
A92: 21 | B92: 002120 | C92: 6171 | D92: 5139 | E92: Nákup materiálu j.n. | F92: 0 | G92: 0 | I92: 0 | J92: 14000 | K92: 3979 | L92: 10000 | M92: 28.42142857
A93: 21 | B93: 002120 | C93: 6171 | D93: 5175 | E93: Pohoštění | F93: 0 | G93: 0 | I93: 0 | J93: 20000 | K93: 6285 | L93: 20000 | M93: 31.43
A94: 21 | B94: 002120 | C94: 6171 | D94: 5194 | E94: Věcné dary | F94: 0 | G94: 0 | I94: 0 | J94: 6000 | K94: 11034 | L94: 10000 | M94: 183.9
A95: ORG 002120 Reprefond | F95: 0 | G95: 0 | I95: 0 | J95: 40000 | K95: 21298 | L95: =SUM(L92:L94) -> 40000 | M95: 53.25
A96: ORJ 21 Sekretariát starosty | F96: 0 | G96: 0 | I96: 0 | J96: 46000 | K96: 24348 | L96: =SUM(L91,L95) -> 46000 | M96: 52.93
A97: 23 | B97: 002310 | C97: 2141 | D97: 2111 | E97: Příjmy z poskytování služeb a výrobků | F97: 500 | G97: 351 | H97: 500 | I97: 70.2 | J97: 0 | K97: 0 | M97: 0
A98: 23 | B98: 002310 | C98: 2141 | D98: 2112 | E98: Příjmy z prodeje zboží (již nakoupeného za účelem prodeje) | F98: 85000 | G98: 79739 | H98: 75000 | I98: 93.81 | J98: 0 | K98: 0 | M98: 0
A99: 23 | B99: 002310 | C99: 2141 | D99: 5011 | E99: Platy zaměstnanců v pracovním poměru | F99: 0 | G99: 0 | I99: 0 | J99: 432000 | K99: 316589 | L99: 436000 | M99: 73.28
A100: 23 | B100: 002310 | C100: 2141 | D100: 5021 | E100: Ostatní osobní výdaje | F100: 0 | G100: 0 | I100: 0 | J100: 50000 | K100: 29630 | L100: 50000 | M100: 59.26
A101: 23 | B101: 002310 | C101: 2141 | D101: 5031 | E101: Povinné pojistné na sociální zabezpečení a příspěvek na státní politiku zamě | F101: 0 | G101: 0 | I101: 0 | J101: 108000 | K101: 78514 | L101: 109000 | M101: 72.7
A102: 23 | B102: 002310 | C102: 2141 | D102: 5032 | E102: Povinné pojištění na veřejné zdravotní pojištění | F102: 0 | G102: 0 | I102: 0 | J102: 39000 | K102: 28493 | L102: 39500 | M102: 73.06
A103: 23 | B103: 002310 | C103: 2141 | D103: 5137 | E103: Drobný hmotný dlouhodobý majetek | F103: 0 | G103: 0 | I103: 0 | J103: 80000 | K103: 2562.56 | L103: 20000 | M103: 3.2
A104: 23 | B104: 002310 | C104: 2141 | D104: 5138 | E104: Nákup zboží (za účelem dalšího prodeje) | F104: 0 | G104: 0 | I104: 0 | J104: 80000 | K104: 50606.21 | L104: 80000 | M104: 63.26
A105: 23 | B105: 002310 | C105: 2141 | D105: 5139 | E105: Nákup materiálu j.n. | F105: 0 | G105: 0 | I105: 0 | J105: 20000 | K105: 18002 | L105: 10000 | M105: 90.01
A106: 23 | B106: 002310 | C106: 2141 | D106: 5152 | E106: Teplo | F106: 0 | G106: 0 | I106: 0 | J106: 4000 | K106: 0 | M106: 0
A107: 23 | B107: 002310 | C107: 2141 | D107: 5162 | E107: Služby elektronických komunikací | F107: 0 | G107: 0 | I107: 0 | J107: 1600 | K107: 1973.3 | L107: 1600 | M107: 123.33
A108: 23 | B108: 002310 | C108: 2141 | D108: 5167 | E108: Služby školení a vzdělávání | F108: 0 | G108: 0 | I108: 0 | J108: 10000 | K108: 0 | L108: 5000 | M108: 0
A109: 23 | B109: 002310 | C109: 2141 | D109: 5169 | E109: Nákup ostatních služeb | F109: 0 | G109: 0 | I109: 0 | J109: 20000 | K109: 50 | L109: 50000 | M109: 0.25
A110: 23 | B110: 002310 | C110: 2141 | D110: 5171 | E110: Opravy a udržování | F110: 0 | G110: 0 | I110: 0 | J110: 5000 | K110: 1450 | L110: 5000 | M110: 29
A111: 23 | B111: 002310 | C111: 2141 | D111: 5173 | E111: Cestovné | F111: 0 | G111: 0 | I111: 0 | J111: 1000 | K111: 103 | L111: 1000 | M111: 10.3
A112: 23 | B112: 002310 | C112: 2141 | D112: 5175 | E112: Pohoštění | F112: 0 | G112: 0 | I112: 0 | J112: 500 | K112: 0 | L112: 500 | M112: 0
A113: 23 | B113: 002310 | C113: 2141 | D113: 5179 | E113: Ostatní nákupy jinde nezařazené | F113: 0 | G113: 0 | I113: 0 | J113: 5000 | K113: 4500 | L113: 5000 | M113: 90
A114: 23 | B114: 002310 | C114: 2141 | D114: 6122 | E114: Stroje, přístroje a zařízení | F114: 0 | G114: 0 | I114: 0 | J114: 0 | K114: 0 | M114: 0
A115: ORG 002310 MIC (Městské informační centrum) | F115: 85500 | G115: 80090 | H115: =SUM(H97:H98) -> 75500 | I115: 93.67 | J115: 856100 | K115: 532473.07 | L115: =SUM(L99:L114) -> 812600 | M115: 62.2
A116: 23 | B116: 002312 | D116: 4122 | E116: Neinvestiční přijaté transfery od krajů | F116: 120000 | G116: 60000 | I116: 50 | J116: 0 | K116: 0 | M116: 0
A117: 23 | B117: 002312 | C117: 2141 | D117: 5137 | E117: Drobný hmotný dlouhodobý majetek | F117: 0 | G117: 0 | I117: 0 | J117: 40000 | K117: 107992.72 | M117: 269.98
A118: 23 | B118: 002312 | C118: 2141 | D118: 5139 | E118: Nákup materiálu j.n. | F118: 0 | G118: 0 | I118: 0 | J118: 30000 | K118: 30000 | M118: 100
A119: 23 | B119: 002312 | C119: 2141 | D119: 5167 | E119: Služby školení a vzdělávání | F119: 0 | G119: 0 | I119: 0 | J119: 10000 | K119: 12000 | M119: 120
A120: 23 | B120: 002312 | C120: 2141 | D120: 5169 | E120: Nákup ostatních služeb | F120: 0 | G120: 0 | I120: 0 | J120: 70000 | K120: 0 | M120: 0
A121: ORG 002312 MIC-dotace (TIC) | F121: 120000 | G121: 60000 | H121: =SUM(H116) -> 0 | I121: 50 | J121: 150000 | K121: 149992.72 | L121: =SUM(L117:L120) -> 0 | M121: 100
A122: 23 | B122: 002320 | C122: 2143 | D122: 5021 | E122: Ostatní osobní výdaje | F122: 0 | G122: 0 | I122: 0 | J122: 5000 | K122: 0 | L122: 5000 | M122: 0
A123: 23 | B123: 002320 | C123: 2143 | D123: 5137 | E123: Drobný hmotný dlouhodobý majetek | F123: 0 | G123: 0 | I123: 0 | J123: 20000 | K123: 2087.25 | L123: 20000 | M123: 10.43625
A124: 23 | B124: 002320 | C124: 2143 | D124: 5139 | E124: Nákup materiálu j.n. | F124: 0 | G124: 0 | I124: 0 | J124: 150000 | K124: 81639.27 | L124: 170000 | M124: 54.42618
A125: 23 | B125: 002320 | C125: 2143 | D125: 5162 | E125: Služby elektronických komunikací | F125: 0 | G125: 0 | I125: 0 | J125: 8000 | K125: 0 | L125: 1000 | M125: 0
A126: 23 | B126: 002320 | C126: 2143 | D126: 5169 | E126: Nákup ostatních služeb | F126: 0 | G126: 0 | I126: 0 | J126: 311000 | K126: 197411.12 | L126: 338000 | M126: 63.48
A127: 23 | B127: 002320 | C127: 2143 | D127: 5171 | E127: Opravy a udržování | F127: 0 | G127: 0 | I127: 0 | J127: 6000 | K127: 0 | L127: 6000 | M127: 0
A128: 23 | B128: 002320 | C128: 2143 | D128: 5494 | E128: Neinvestiční transfery obyvatelstvu nemající charakter daru | F128: 0 | G128: 0 | I128: 0 | J128: 0 | K128: 2420 | M128: 0
A129: ORG 002320 Propagace | F129: 0 | G129: 0 | I129: 0 | J129: 500000 | K129: 283557.64 | L129: =SUM(L122:L128) -> 540000 | M129: 56.71 | N129: komentář
A130: 23 | B130: 002330 | C130: 3349 | D130: 2111 | E130: Příjmy z poskytování služeb a výrobků | F130: 19000 | G130: 19238 | H130: 19000 | I130: 101.25 | J130: 0 | K130: 0 | M130: 0
A131: 23 | B131: 002330 | C131: 3349 | D131: 2119 | E131: Ostatní příjmy z vlastní činnosti | F131: 2000 | G131: 0 | H131: 2000 | I131: 0 | J131: 0 | K131: 0 | M131: 0
A132: 23 | B132: 002330 | C132: 3349 | D132: 5021 | E132: Ostatní osobní výdaje | F132: 0 | G132: 0 | I132: 0 | J132: 17000 | K132: 17000 | L132: 20000 | M132: 100
A133: 22 | B133: 002330 | C133: 3349 | D133: 5169 | E133: Nákup ostatních služeb | F133: 0 | G133: 0 | I133: 0 | J133: 210000 | K133: 160902.5 | L133: 210000 | M133: 76.62
A134: ORG 002330 Štramberské novinky | F134: 21000 | G134: 19238 | H134: =SUM(H130:H131) -> 21000 | I134: 101.25 | J134: 227000 | K134: 177902.5 | L134: =SUM(L132:L133) -> 230000 | M134: 78.37
A135: 23 | B135: 002470 | C135: 3315 | D135: 4122 | E135: Neinvestiční přijaté transfery od krajů | F135: 0 | G135: 26860 | I135: 0 | J135: 0 | K135: 0
A136: 23 | B136: 002470 | C136: 3315 | D136: 2111 | E136: Příjmy z poskytování služeb a výrobků | F136: 120000 | G136: 111770 | H136: 120000 | I136: 93.14166667 | J136: 0 | K136: 0 | M136: 0
A137: 23 | B137: 002470 | C137: 3315 | D137: 2112 | E137: Příjmy z prodeje zboží (již nakoupeného za účelem prodeje) | F137: 110000 | G137: 93332 | H137: 110000 | I137: 84.85 | J137: 0 | K137: 0 | M137: 0
A138: 23 | B138: 002470 | C138: 3315 | D138: 5011 | E138: Platy zaměstnanců v pracovním poměru | F138: 0 | G138: 0 | I138: 0 | J138: 464000 | K138: 327839 | L138: 435000 | M138: 70.65
A139: 23 | B139: 002470 | C139: 3315 | D139: 5021 | E139: Ostatní osobní výdaje | F139: 0 | G139: 0 | I139: 0 | J139: 50000 | K139: 71290 | L139: 80000 | M139: 142.58
A140: 23 | B140: 002470 | C140: 3315 | D140: 5031 | E140: Povinné pojistné na sociální zabezpečení a příspěvek na státní politiku zamě | F140: 0 | G140: 0 | I140: 0 | J140: 116000 | K140: 81303 | L140: 110000 | M140: 70.09
A141: 23 | B141: 002470 | C141: 3315 | D141: 5032 | E141: Povinné pojištění na veřejné zdravotní pojištění | F141: 0 | G141: 0 | I141: 0 | J141: 42000 | K141: 29506 | L141: 40000 | M141: 70.25
A142: 23 | B142: 002470 | C142: 3315 | D142: 5136 | E142: Knihy, učební pomůcky a tisk | F142: 0 | G142: 0 | I142: 0 | J142: 1000 | K142: 0 | L142: 1000 | M142: 0
A143: 23 | B143: 002470 | C143: 3315 | D143: 5137 | E143: Drobný hmotný dlouhodobý majetek | F143: 0 | G143: 0 | I143: 0 | J143: 30000 | K143: 0 | L143: 80000 | M143: 0
A144: 23 | B144: 002470 | C144: 3315 | D144: 5138 | E144: Nákup zboží (za účelem dalšího prodeje) | F144: 0 | G144: 0 | I144: 0 | J144: 120000 | K144: 73603.9 | L144: 130000 | M144: 61.34
A145: 23 | B145: 002470 | C145: 3315 | D145: 5139 | E145: Nákup materiálu j.n. | F145: 0 | G145: 0 | I145: 0 | J145: 10000 | K145: 4678 | L145: 10000 | M145: 46.78
A146: 23 | B146: 002470 | C146: 3315 | D146: 5151 | E146: Studená voda | F146: 0 | G146: 0 | I146: 0 | J146: 11000 | K146: 5858.99 | L146: 10000 | M146: 53.26
A147: 23 | B147: 002470 | C147: 3315 | D147: 5154 | E147: Elektrická energie | F147: 0 | G147: 0 | I147: 0 | J147: 170000 | K147: 101518.05 | L147: 120000 | M147: 59.72
A148: 23 | B148: 002470 | C148: 3315 | D148: 5162 | E148: Služby elektronických komunikací | F148: 0 | G148: 0 | I148: 0 | J148: 4500 | K148: 2437.23 | L148: 4500 | M148: 54.16
A149: 23 | B149: 002470 | C149: 3315 | D149: 5163 | E149: Služby peněžních ústavů | F149: 0 | G149: 0 | I149: 0 | J149: 30000 | K149: 0 | L149: 30000 | M149: 0
A150: 23 | B150: 002470 | C150: 3315 | D150: 5169 | E150: Nákup ostatních služeb | F150: 0 | G150: 0 | I150: 0 | J150: 45000 | K150: 7679 | L150: 30000 | M150: 17.06
A151: 23 | B151: 002470 | C151: 3315 | D151: 5171 | E151: Opravy a udržování | F151: 0 | G151: 0 | I151: 0 | J151: 80000 | K151: 79994.4 | L151: 30000 | M151: 99.99
A152: 23 | B152: 002470 | C152: 3315 | D152: 5173 | E152: Cestovné | F152: 0 | G152: 0 | I152: 0 | J152: 10000 | K152: 0 | L152: 7000 | M152: 0
A153: 23 | B153: 002470 | C153: 3315 | D153: 5175 | E153: Pohoštění | F153: 0 | G153: 0 | I153: 0 | J153: 5000 | K153: 0 | L153: 5000 | M153: 0
A154: 23 | B154: 002470 | C154: 3315 | D154: 6122 | E154: Stroje, přístroje a zařízení | F154: 0 | G154: 0 | I154: 0 | J154: 70000 | K154: 0 | L154: 0 | M154: 0
A155: ORG 002470 Muzeum Zdeňka Buriana | F155: 230000 | G155: 231962 | H155: =SUM(H136:H137) -> 230000 | I155: 100.85 | J155: 1258500 | K155: 785707.57 | L155: =SUM(L138:L154) -> 1122500 | M155: 62.43
A156: 23 | B156: 002600 | C156: 3321 | D156: 2111 | E156: Příjmy z poskytování služeb a výrobků | F156: 1200000 | G156: 1368990 | H156: 2600000 | I156: 114.08 | J156: 0 | K156: 0 | M156: 0
A157: 23 | B157: 002600 | C157: 3321 | D157: 2112 | E157: Příjmy z prodeje zboží (již nakoupeného za účelem prodeje) | F157: 100000 | G157: 100709 | H157: 110000 | I157: 100.71 | J157: 0 | K157: 0 | M157: 0
A158: 23 | B158: 002600 | C158: 3321 | D158: 5011 | E158: Platy zaměstnanců v pracovním poměru | F158: 0 | G158: 0 | I158: 0 | J158: 516000 | K158: 325328 | L158: 525000 | M158: 63.05
A159: 23 | B159: 002600 | C159: 3321 | D159: 5021 | E159: Ostatní osobní výdaje | F159: 0 | G159: 0 | I159: 0 | J159: 90000 | K159: 92285 | L159: 90000 | M159: 102.54
A160: 23 | B160: 002600 | C160: 3321 | D160: 5031 | E160: Povinné pojistné na sociální zabezpečení a příspěvek na státní politiku zamě | F160: 0 | G160: 0 | I160: 0 | J160: 129000 | K160: 80665 | L160: 131000 | M160: 62.53
A161: 23 | B161: 002600 | C161: 3321 | D161: 5032 | E161: Povinné pojištění na veřejné zdravotní pojištění | F161: 0 | G161: 0 | I161: 0 | J161: 47000 | K161: 29265 | L161: 47000 | M161: 62.27
A162: 23 | B162: 002600 | C162: 3321 | D162: 5137 | E162: Drobný hmotný dlouhodobý majetek | F162: 0 | G162: 0 | I162: 0 | J162: 70000 | K162: 58783.86 | L162: 60000 | M162: 83.97694286
A163: 23 | B163: 002600 | C163: 3321 | D163: 5138 | E163: Nákup zboží (za účelem dalšího prodeje) | F163: 0 | G163: 0 | I163: 0 | J163: 40000 | K163: 34066.77 | L163: 40000 | M163: 85.166925
A164: 23 | B164: 002600 | C164: 3321 | D164: 5139 | E164: Nákup materiálu j.n. | F164: 0 | G164: 0 | I164: 0 | J164: 40000 | K164: 10542 | L164: 40000 | M164: 24.9675
A165: 23 | B165: 002600 | C165: 3321 | D165: 5151 | E165: Studená voda | F165: 0 | G165: 0 | I165: 0 | J165: 25000 | K165: 14701.76 | L165: 12000 | M165: 58.81
A166: 23 | B166: 002600 | C166: 3321 | D166: 5154 | E166: Elektrická energie | F166: 0 | G166: 0 | I166: 0 | J166: 66000 | K166: 18886.98 | L166: 40000 | M166: 28.62
A167: 23 | B167: 002600 | C167: 3321 | D167: 5161 | E167: Poštovní služby | F167: 0 | G167: 0 | I167: 0 | J167: 150 | K167: 0 | L167: 500 | M167: 0
A168: 23 | B168: 002600 | C168: 3321 | D168: 5162 | E168: Služby elektronických komunikací | F168: 0 | G168: 0 | I168: 0 | J168: 4850 | K168: 537.55 | L168: 5000 | M168: 11.08
A169: 23 | B169: 002600 | C169: 3321 | D169: 5169 | E169: Nákup ostatních služeb | F169: 0 | G169: 0 | I169: 0 | J169: 100000 | K169: 113121.9 | L169: 100000 | M169: 113.12
A170: 23 | B170: 002600 | C170: 3321 | D170: 5171 | E170: Opravy a udržování | F170: 0 | G170: 0 | I170: 0 | J170: 120000 | K170: 4000 | L170: 500000 | M170: 3.333333333
A171: 23 | B171: 002600 | C171: 3321 | D171: 5424 | E171: Náhrady mezd v době nemoci | F171: 0 | G171: 0 | I171: 0 | J171: 0 | K171: 2818
A172: ORG 002600 Trúba | F172: 1300000 | G172: 1469699 | H172: =SUM(H156:H157) -> 2710000 | I172: 113.05 | J172: 1248000 | K172: 785001.82 | L172: =SUM(L158:L170) -> 1590500 | M172: 62.9 | N172: komentář
A173: 23 | B173: 002450 | C173: 3313 | D173: 2111 | E173: Příjmy z poskytování služeb a výrobků | F173: 30000 | G173: 42780 | H173: 40000 | I173: 142.6 | J173: 0 | K173: 0 | M173: 0
A174: 23 | B174: 002450 | C174: 3313 | D174: 5021 | E174: Ostatní osobní výdaje | F174: 0 | G174: 0 | I174: 0 | J174: 66000 | K174: 44885 | L174: 40000 | M174: 68.01
A175: 23 | B175: 002450 | C175: 3313 | D175: 5041 | E175: Odměny za užití duševního vlastnictví | F175: 0 | G175: 0 | I175: 0 | J175: 1000 | K175: 555.39 | L175: 1000 | M175: 55.539
A176: 23 | B176: 002450 | C176: 3313 | D176: 5137 | E176: Drobný hmotný dlouhodobý majetek | F176: 0 | G176: 0 | I176: 0 | J176: 15000 | K176: 0 | L176: 15000 | M176: 0
A177: 23 | B177: 002450 | C177: 3313 | D177: 5139 | E177: Nákup materiálu j.n. | F177: 0 | G177: 0 | I177: 0 | J177: 5000 | K177: 2901 | L177: 3000 | M177: 58.02
A178: 23 | B178: 002450 | C178: 3313 | D178: 5162 | E178: Služby elektronických komunikací | F178: 0 | G178: 0 | I178: 0 | J178: 500 | K178: 230.05 | L178: 500 | M178: 46.01
A179: 23 | B179: 002450 | C179: 3313 | D179: 5169 | E179: Nákup ostatních služeb | F179: 0 | G179: 0 | I179: 0 | J179: 114000 | K179: 97126.13 | L179: 70000 | M179: 85.2
A180: 23 | B180: 002450 | C180: 3313 | D180: 5171 | E180: Opravy a udržování | F180: 0 | G180: 0 | I180: 0 | J180: 20000 | K180: 2221 | L180: 10000 | M180: 11.105
A181: 23 | B181: 002450 | C181: 3313 | D181: 6122 | E181: Stroje, přístroje a zařízení | F181: 0 | G181: 0 | I181: 0 | J181: 0 | K181: 0 | M181: 0
A182: ORG 002450 Kino | F182: 30000 | G182: 42780 | H182: =SUM(H173) -> 40000 | I182: 142.6 | J182: 221500 | K182: 147918.57 | L182: =SUM(L174:L181) -> 139500 | M182: 66.78
A183: 23 | B183: 002460 | D183: 4116 | E183: Ostatní neinvestiční přijaté transfery ze státního rozpočtu | F183: 90000 | G183: 90000 | I183: 100 | J183: 0 | K183: 0 | M183: 0
A184: 23 | B184: 002460 | C184: 3314 | D184: 2111 | E184: Příjmy z poskytování služeb a výrobků | F184: 17000 | G184: 13844 | H184: 17000 | I184: 81.44 | J184: 0 | K184: 0 | M184: 0
A185: 23 | B185: 002460 | C185: 3314 | D185: 5011 | E185: Platy zaměstnanců v pracovním poměru | F185: 0 | G185: 0 | I185: 0 | J185: 368000 | K185: 277377 | L185: 368000 | M185: 75.37
A186: 23 | B186: 002460 | C186: 3314 | D186: 5031 | E186: Povinné pojistné na sociální zabezpečení a příspěvek na státní politiku zamě | F186: 0 | G186: 0 | I186: 0 | J186: 92000 | K186: 68789 | L186: 92000 | M186: 74.77
A187: 23 | B187: 002460 | C187: 3314 | D187: 5032 | E187: Povinné pojištění na veřejné zdravotní pojištění | F187: 0 | G187: 0 | I187: 0 | J187: 34000 | K187: 24964 | L187: 34000 | M187: 73.42
A188: 23 | B188: 002460 | C188: 3314 | D188: 5136 | E188: Knihy, učební pomůcky a tisk | F188: 0 | G188: 0 | I188: 0 | J188: 105000 | K188: 99725.16 | L188: 100000 | M188: 94.98
A189: 23 | B189: 002460 | C189: 3314 | D189: 5137 | E189: Drobný hmotný dlouhodobý majetek | F189: 0 | G189: 0 | I189: 0 | J189: 33000 | K189: 33718.93 | L189: 50000 | M189: 102.18
A190: 23 | B190: 002460 | C190: 3314 | D190: 5139 | E190: Nákup materiálu j.n. | F190: 0 | G190: 0 | I190: 0 | J190: 18000 | K190: 5186 | L190: 15000 | M190: 28.81
A191: 23 | B191: 002460 | C191: 3314 | D191: 5161 | E191: Poštovní služby | F191: 0 | G191: 0 | I191: 0 | J191: 0 | K191: 196 | L191: 500 | M191: 0
A192: 23 | B192: 002460 | C192: 3314 | D192: 5162 | E192: Služby elektronických komunikací | F192: 0 | G192: 0 | I192: 0 | J192: 5000 | K192: 1460.92 | L192: 5000 | M192: 29.22
A193: 23 | B193: 002460 | C193: 3314 | D193: 5167 | E193: Služby školení a vzdělávání | F193: 0 | G193: 0 | I193: 0 | J193: 2500 | K193: 0 | L193: 3000 | M193: 0
A194: 23 | B194: 002460 | C194: 3314 | D194: 5169 | E194: Nákup ostatních služeb | F194: 0 | G194: 0 | I194: 0 | J194: 139000 | K194: 104058 | L194: 40000 | M194: 74.86
A195: 23 | B195: 002460 | C195: 3314 | D195: 5171 | E195: Opravy a udržování | F195: 0 | G195: 0 | I195: 0 | J195: 20000 | K195: 1250 | L195: 10000 | M195: 6.25
A196: 23 | B196: 002460 | C196: 3314 | D196: 5172 | E196: Programové vybavení | F196: 0 | G196: 0 | I196: 0 | J196: 6000 | K196: 0 | L196: 3000 | M196: 0
A197: 23 | B197: 002460 | C197: 3314 | D197: 5173 | E197: Cestovné | F197: 0 | G197: 0 | I197: 0 | J197: 2500 | K197: 0 | L197: 2500 | M197: 0
A198: 23 | B198: 002460 | C198: 3314 | D198: 5175 | E198: Pohoštění | F198: 0 | G198: 0 | I198: 0 | J198: 2000 | K198: 296 | L198: 2000 | M198: 14.8
A199: 23 | B199: 002460 | C199: 3314 | D199: 5179 | E199: Ostatní nákupy jinde nezařazené | F199: 0 | G199: 0 | I199: 0 | J199: 1000 | K199: 550 | L199: 1000 | M199: 55
A200: 23 | B200: 002460 | C200: 3314 | D200: 5194 | E200: Věcné dary | F200: 0 | G200: 0 | I200: 0 | J200: 5000 | K200: 1670 | L200: 3000 | M200: 33.4
... 671 more rows

Sheet Ver.Prost.Opravy (hidden)
A1: ORG 003542 Veřejné prostranství-drobné opravy
G3: Zpět na seznam rozpočtu
B6: Komentář: | D6: na drobné opravy charakteru: oprava zídky kolem cesty nebo chodníku, oprava zábradlí, ….

Sheet Kan.Nadrazni (hidden)
A1: ORG 3110 Kanalizace Nádražní ul. (před byt.domy) včetně opravy povrchu
G3: Zpět na seznam rozpočtu
B6: Komentář: | D6: Havarijní stav dešťové kanalizace na ulici Nádražní před bytovými domy - na základě stížnosti obyvatel bytových domů týkající se zatíkání vody do jejich sklepních prostor, byla provedena ze strany SmVaKu kamerová zkouška resp. průzkum dešťové kanalizace. Bylo zjištěno, že kanalizace je propadlá. Kanalizace je v majetku města. Odhad nákladů na rekonstrukci kanalizace včetně opravy povrchů komunikace je cca 3 mil. Kč.

Sheet Rek.Kot.Roz.MS (hidden)
A1: ORG 3110 Rekonstrukce kotelny a rozvodů v MŠ Zauličí
G3: Zpět na seznam rozpočtu
B6: Komentář: | D6: Při revizi kotelny bylo v Mateřské škole na Zauličí konstatováno, že je nutné provést rekonstrukci kotelny včetně rozvodů. Odhad nákladů je 1 mil. Kč

Sheet Rek.Koupaliste (hidden)
A1: ORG 003117 Rekonstrukce koupaliště
G3: Zpět na seznam rozpočtu
B6: Komentář: | D6: Vzhledem k tomu, že sezónu v roce 2021 díky rekonstrukci nebude možné časově stihnout a díky neočekávaných havarijním stavům dešťové kanalizace na ul. Nádražní a kotelny v MŠZ, navrhujeme rozdělit rekonstrukci do 2 fází. 1. fáze - stavební část realizovat v roce 2021. 2. fáze - technologická část realizovat v roce 2022 s termínem dokončení do 15.6.2022, aby bylo koupaliště v sezoně 2022 již v provozu.

Sheet Poz.Prodej (hidden)
A1: ORG 003402 Pozemky-prodej
G3: Zpět na seznam rozpočtu
B6: Komentář | D6: Adamcová, Mališová-ZM 12/2020

Sheet Byt.Sprava (hidden)
A1: ORG 003730 Bytová správa
G3: Zpět na seznam rozpočtu
B6: Komentář: | D6: 5171 - původně 4,5 mil. Kč - potřebné opravy: 600 tis.Kč oprava střechy 751, 200 tis.Kč oprava střechy 818-819, 2,5 mil.Kč zateplení sklepů 814-819, 1,2 mil.Kč elektrorozvody ve sklepních prostorách 814-819, 300 tis.Kč odvodnění domů 818-819, 800 tis.Kč výměna kotlů
D8: 5171 - ponecháno 2,1 mil.Kč - 600 tis.Kč oprava střechy 751, 200 tis.Kč oprava střechy 818-819, 800 tis.Kč výměna kotlů, 300 tis.Kč odvodnění domů 818-819, 200 tis.Kč ostatní běžné opravy
D9: 3112 - prodej bytových domů v Drážném (539, 569)

Sheet Skolstvi (hidden)
A1: ORJ 64 Školství
G3: Zpět na seznam rozpočtu
B6: Komentář: | D6: rozpočet na provoz ZŠ 2 293 tis.Kč + 130 tis.Kč na aktivity školy + 175 tis.Kč pracovní sešity + 135 tis.Kč na výkresy a výtvarné potřeby
D8: U MŠZ byl požadovaný rozpočet na provoz 540 tis.Kč. Ten obsahoval 80 tis.Kč na opravu a nátěr střechy. V tomto případě nejde o drobnou údržbu a mělo by být zajištěno a financováno zřizovatelem tj. městem

Sheet Mob.Namesti (hidden)
A1: ORG 003229 Projekt-Obnova mobiliáře na Náměstí
G3: Zpět na seznam rozpočtu
B6: Komentář: | D6: Město obdrželo informace, že projekt, který byl podán na výzvu MAS Lašsko byl doporučen k financování, začlenili jsme proto již do rozpočtu města

Sheet VerejneWC (hidden)
A1: ORG 003553 Veřejné WC
G3: Zpět na seznam rozpočtu
B6: Komentář: | D6: 5139 - celková spotřeba toaletních a čistících potřeb
D7: 6121 - nové WC u parkoviště (kontejner) + mincovní automat na WC Trúba
D8: 5169 - dlouhodobý pronájem mobilních WC 3 ks

Sheet Nakl.Kom.Odpad (hidden)
A1: ORG 006600 Nakládání s komunálním odpadem
G3: Zpět na seznam rozpočtu
B6: Komentář: | D6: 5169 - od 1.1. 2021 by měla proběhnout změna a poplatek za uložení na skládku některých odpadů by se měl zvednout z 500 Kč/t na 800 Kč/t.

Sheet Cin.Mist.Spravy (hidden)
A1: ORG 006040 Činnost místní správy
G3: Zpět na seznam rozpočtu
B6: Komentář: | D6: 5169 - Převod 100 tis. Kč z ORG 3204 - Digitální úřad

Sheet MediaATechnika (hidden)
A1: ORG 002201 Úsek médií a techniky
G3: Zpět na seznam rozpočtu
B6: Komentář: | D6: Organizace převedena na ORG 2490

Sheet DomyMesta (hidden)
A1: ORG 003720 Domy v majetku města
G3: Zpět na seznam rozpočtu
B6: Komentář: | D6: Od roku 2021 budou mzdové náklady na referentku správy bytů a nebytových prostor, uklízeček a správce tělocvičny účtovány na tuto ORG. O příslušné mzdové náklady byly sníženy ORG, kde se mzdy účtovaly do této doby.

Sheet Fot.HristeBariny (hidden)
A1: ORG 003530 Fotbalové hřiště Bařiny
G3: Zpět na seznam rozpočtu
B6: Komentář: | D6: 6122 - 60 tis.Kč zavlažovací vozík. Původní návrh byl ve výši 430 tis.Kč na pořízení zavlažovacího systému
D7: 5171 - 50 tis.Kč - travníkový program - hnojení celoroční

Sheet Parkovne (hidden)
A1: ORG 003523 Parkovné
G3: Zpět na seznam rozpočtu
B6: Komentář: | D6: 6122 - 200 tis. - parkovací automat k Sokolce, 700 tis.Kč - parkovací systém na Horečce (závory)

Sheet DDM (hidden)
A1: ORG 003500 DDM-Dům dětí a mládeže
G3: Zpět na seznam rozpočtu
B6: Komentář: | D6: 5171 - 200 tis.Kč - úprava před vchodem, 100 tis. Kč - oprava střechy (zatéká)

Sheet SbernyDvur (hidden)
A1: ORG 003555 Sběrný dvůr - provoz
G3: Zpět na seznam rozpočtu
B6: Komentář: | D6: 5171 - upravit boxy ať tam neprší
D7: 6122 - kontejnéry

Sheet Kanalizace (hidden)
A1: ORG 003542 Kanalizace
G3: Zpět na seznam rozpočtu
B6: Komentář: | D6: čištění propustků a kanalizace

Sheet Kasna (hidden)
A1: ORG 003540 Kašna-odvod a čištění odpad.vod
G3: Zpět na seznam rozpočtu
B6: Komentář: | D6: opravy a udržování 50000,- Nátěr vany, oprava čerpadla a výměna písku,nasvícení studny

Sheet KomunikaceUdrz.Opr. (hidden)
A1: ORG 003520 Komunikace-údržba, oprava
G3: Zpět na seznam rozpočtu
B6: Komentář: | D6: 5139 - dopravní značení - úprava parkovacího systému + posypová sůl na zimní údržbu
D7: 5171 - Opravy cest a krajnic sříkaným asfaltem ( faní zahrada, paseky, ulice nad Očním , ulice ke sběrnému dvoru, Na kanále v Dolní ulici ,Bařiny garáže, cesta k fotbalovému hřišti, žlaby příkopy hlavně tam kde je v příkopě optika a na Libotíně velká točna, oprava zídek.

Sheet TechSprava (hidden)
A1: ORG 003510 Oddělení technické správy
G3: Zpět na seznam rozpočtu
B6: Komentář | D6: 4116 - VPP (smlouva do 30.4. - placeno zpětně)
D7: 3113 - prodej radlice+kropící vůz v ZC
D8: 5132 - Ochranné brýle,štíty,antivibrační rukavice, ochrana sluchu
D9: 6122 - ISUZU, ramenový mulčovač,robotická sekačka (návrh ze strany TS 2 mil. Kč)

Sheet PohrebnictviPece (hidden)
A1: ORG 003422 Pohřebnictví-péče o pietní místa
G3: Zpět na seznam rozpočtu
B6: Komentář | D6: údržba 30 tis.+rezerva opravy 30 tis.

Sheet PozemkyNaj.Nak. (hidden)
A1: ORG 003400 Pozemky-nájem,nákup
G3: Zpět na seznam rozpočtu
B6: Komentář | D6: kolotoče+ostatní
D7: 6130 - rezerva-koupě MK

Sheet KanalizaceLibotin (hidden)
A1: ORG 003219 Projekt-Kanalizace Libotín
G3: Zpět na seznam rozpočtu
B6: Komentář: | D6: Nájem - smlouva o provozování
D7: zpracování ZVA, udržitelnost projektu, solidární cena

Sheet VodovodLibotin (hidden)
A1: ORG 003218 Projekt-Vodovod Libotín
G3: Zpět na seznam rozpočtu
B6: Komentář: | D6: Nájem - smlouva o provozování
D7: zpracování ZVA, udržitelnost projektu, solidární cena

Sheet Krop.Vuz (hidden)
A1: ORG 003206 Projekt-Kropící vůz
G3: Zpět na seznam rozpočtu
B6: Komentář: | D6: Udržitelnost projektu skončila

Sheet Protipo.Opatreni (hidden)
A1: ORG 003205 Projekt-Protipovodňová opatřen
G3: Zpět na seznam rozpočtu
B6: Komentář: | D6: Udržitelnost projektu skončila

Sheet Dig.Urad (hidden)
A1: ORG 003204 Projekt-Digitální úřad 21.století
G3: Zpět na seznam rozpočtu
B6: Komentář: | D6: Udržitelnost projektu skončila - převod na org 6040

Sheet Cist.Stramberk (hidden)
A1: ORG 003202 Projekt-Čistší Štramberk
G3: Zpět na seznam rozpočtu
B6: Komentář: | D6: Udržitelnost projektu skončila

Sheet Rek.Hrbitov (hidden)
A1: ORG 003115 Rekonstrukce Hřbitova
G3: Zpět na seznam rozpočtu
B6: Komentář: | D6: 6121 - doplnění mobiliáře (stojany na konve, pítko…)

Sheet Det.Hriste (hidden)
A1: ORG 002540 Dětská hřiště
G3: Zpět na seznam rozpočtu
B6: Komentář: | D6: 6122 - čistící přístroj na hřiště před ZŠ

Sheet Telocvicna (hidden)
A1: ORG 002500 Tělocvična
G3: Zpět na seznam rozpočtu
B6: Komentář: | D6: Platy a obslužné služby přesunuty na ORG 3720 Domy v majetku města

Sheet KD (hidden)
A1: ORG 002490 Kulturní dům
G3: Zpět na seznam rozpočtu
B6: Komentář: | D6: 5011, 5031, 5032 - Referent medií a techniky - z ORG 2201
D7: 5137 - vybavení půdních prostor, stánky
D8: 6122 - barevná A3 kopírka

Sheet Truba (hidden)
A1: ORG 002600 Trúba
G3: Zpět na seznam rozpočtu
B6: Komentář: | D6: 5171-kovaný výstupní turniket+rozšíření oplocení (v souladu se stanoviskem památkářů), boční mříž u Jaroňkovy útulny - cca 200 tis.
D7: 5171-výměna poškozeného trámu ochozu Trúby - převod z roku 2020 ORG 3360 - 300 tis.Kč

Sheet Propagace (hidden)
A1: ORG 002320 Propagace
G3: Zpět na seznam rozpočtu
B6: Komentář: | D6: navýšení příspěvku Destinačnímu managementu do fondu CR (z 25 tis.Kč na 35 tis.Kč, navýšení příspěvku Lašské bráně již od 2020)

Sheet Uhr.Dob.Cinnost (hidden)
A1: ORG 002000 Úhrady za dobývací činnost
G3: Zpět na seznam rozpočtu
B6: Komentář: | D6: 860.000 Kč vyfakturováno-97.450 Kč příspěvek D.Plandor = 762.550 Kč

Sheet Dane (hidden)
A1: ORJ 11 Daně
G3: Zpět na seznam rozpočtu
B6: Komentář
